fUSD/lending_fUSD_20260512
["ID","MTS","AMOUNT","RATE_DAILY","PERIOD"]
[422074365,1778551843000,-151.0,0.00030564,30]
[422074364,1778551843000,-161.0,0.00030564,30]
[422074366,1778551843000,-157.0,0.00030564,30]
[422074410,1778551843000,-552.0,0.00031617,30]
[422074392,1778551843000,-931.438,0.00031287,2]
[422074407,1778551843000,-152.0,0.00031617,30]
[422074444,1778551843000,-500.0,0.00032603,10]
[422074445,1778551843000,-500.0,0.00032603,10]
[422074446,1778551843000,-500.0,0.00032603,10]
[422074447,1778551843000,-500.0,0.00032603,10]
[422074448,1778551843000,-500.0,0.00032603,10]
[422074449,1778551843000,-338.72809111,0.00032603,10]
[422074450,1778551843000,-150.0,0.00032603,10]
[422074453,1778551843000,-500.0,0.00032603,10]
[422074451,1778551843000,-150.0,0.00032603,10]
[422074455,1778551843000,-513.31108128,0.00032603,10]
[422074454,1778551843000,-150.0,0.00032603,10]
[422074452,1778551843000,-150.0,0.00032603,10]
[422074456,1778551843000,-268.87677318,0.00032603,10]
[422074440,1778551843000,-500.0,0.00032603,10]
[422074457,1778551843000,-500.0,0.00032603,10]
[422074459,1778551843000,-500.0,0.00032603,10]
[422074461,1778551843000,-152.0,0.00032617,30]
[422074460,1778551843000,-252.45324732,0.00032603,10]
[422074463,1778551843000,-552.0,0.00032617,30]
[422074462,1778551843000,-152.0,0.00032617,30]
[422074464,1778551843000,-150.0,0.00032636,2]
[422074465,1778551843000,-598.11,0.00032679,120]
[422074466,1778551843000,-151.0,0.00032877,7]
[422074468,1778551843000,-468.96,0.00032877,30]
[422074467,1778551843000,-198.62,0.00032877,2]
[422074412,1778551843000,-15278.27,0.00031715,90]
[422074469,1778551843000,-167.89,0.00032877,60]
[422074471,1778551843000,-192.78986475,0.00033,120]
[422074458,1778551843000,-500.0,0.00032603,10]
[422074439,1778551843000,-500.0,0.00032603,10]
[422074470,1778551843000,-250.0,0.00032988,7]
[422074441,1778551843000,-500.0,0.00032603,10]
[422074442,1778551843000,-500.0,0.00032603,10]
[422074415,1778551843000,-183.54190119,0.00032,120]
[422074414,1778551843000,-192.78986475,0.00032,120]
[422074418,1778551843000,-200.0,0.00032055,2]
[422074417,1778551843000,-186.05010113,0.00032,120]
[422074419,1778551843000,-736.0,0.0003221,5]
[422074416,1778551843000,-181.60788303,0.00032,120]
[422074420,1778551843000,-1089.45,0.00032234,2]
[422074422,1778551843000,-332.0,0.00032564,30]
[422074423,1778551843000,-161.0,0.00032564,30]
[422074424,1778551843000,-151.0,0.00032564,30]
[422074421,1778551843000,-5530.0,0.000324,5]
[422074425,1778551843000,-157.0,0.00032564,30]
[422074413,1778551843000,-503.0,0.00031811,9]
[422074426,1778551843000,-1033.0,0.00032568,30]
[422074438,1778551843000,-500.0,0.00032603,10]
[422074443,1778551843000,-500.0,0.00032603,10]
[422074437,1778551843000,-515.72234033,0.00032603,10]
[422074433,1778551843000,-500.0,0.00032603,10]
[422074435,1778551843000,-500.0,0.00032603,10]
[422074429,1778551843000,-3176.4,0.000326,14]
[422074436,1778551843000,-506.44330256,0.00032603,10]
[422074432,1778551843000,-500.0,0.00032603,10]
[422074427,1778551843000,-157.0,0.00032568,30]
[422074430,1778551843000,-500.0,0.00032603,10]
[422074428,1778551843000,-154.0,0.00032568,30]
[422074431,1778551843000,-500.0,0.00032603,10]
[422074434,1778551843000,-500.0,0.00032603,10]
[422074524,1778551844000,-503.0,0.00035518,13]
[422074523,1778551844000,-1500.0,0.000352,7]
[422074520,1778551844000,-183.54190119,0.00035,120]
[422074519,1778551844000,-517.83,0.00034959,30]
[422074513,1778551844000,-152.0,0.00034617,30]
[422074516,1778551844000,-614.62,0.00034931,5]
[422074514,1778551844000,-552.0,0.00034617,30]
[422074515,1778551844000,-960.99,0.00034823,90]
[422074512,1778551844000,-152.0,0.00034617,30]
[422074510,1778551844000,-167.91522121,0.00034564,30]
[422074511,1778551844000,-1033.0,0.00034568,30]
[422074521,1778551844000,-186.05010113,0.00035,120]
[422074529,1778551844000,-3176.4,0.000356,14]
[422074525,1778551844000,-15278.27,0.00035523,90]
[422074528,1778551844000,-1033.0,0.00035568,30]
[422074526,1778551844000,-332.0,0.00035564,30]
[422074527,1778551844000,-151.0,0.00035564,30]
[422074531,1778551844000,-198.62,0.00035616,2]
[422074530,1778551844000,-544.18558404,0.00035616,120]
[422074533,1778551844000,-152.0,0.00035617,30]
[422074532,1778551844000,-152.0,0.00035617,30]
[422074534,1778551844000,-552.0,0.00035617,30]
[422074535,1778551844000,-994.0,0.00035635,30]
[422074509,1778551844000,-151.0,0.00034564,30]
[422074536,1778551844000,-686.0,0.00035635,30]
[422074522,1778551844000,-497.961043,0.00035,2]
[422074507,1778551844000,-163.20899857,0.00034564,30]
[422074487,1778551844000,-152.0,0.00033617,30]
[422074503,1778551844000,-150.0,0.00034267,2]
[422074538,1778551844000,-150.231904,0.0003568,120]
[422074473,1778551844000,-181.60788303,0.00033,120]
[422074472,1778551844000,-183.54190119,0.00033,120]
[422074476,1778551844000,-350.0,0.00033014,5]
[422074475,1778551844000,-9444.28853462,0.00033,30]
[422074478,1778551844000,-332.0,0.00033564,30]
[422074477,1778551844000,-166.43,0.000332,30]
[422074479,1778551844000,-161.0,0.00033564,30]
[422074480,1778551844000,-151.0,0.00033564,30]
[422074482,1778551844000,-1033.0,0.00033568,30]
[422074481,1778551844000,-157.0,0.00033564,30]
[422074483,1778551844000,-164.74496523,0.00033568,30]
[422074485,1778551844000,-791.7,0.000336,7]
[422074484,1778551844000,-162.94465727,0.00033568,30]
[422074486,1778551844000,-152.0,0.00033617,30]
[422074488,1778551844000,-552.0,0.00033617,30]
[422074489,1778551844000,-15278.27,0.00033619,90]
[422074490,1778551844000,-503.0,0.00033664,11]
[422074491,1778551844000,-3176.4,0.000339,14]
[422074493,1778551844000,-181.60788303,0.000339,120]
[422074492,1778551844000,-183.54190119,0.000339,120]
[422074499,1778551844000,-29473.86140883,0.00034,7]
[422074494,1778551844000,-186.05010113,0.000339,120]
[422074497,1778551844000,-350.0,0.00033973,5]
[422074501,1778551844000,-736.0,0.00034182,7]
[422074505,1778551844000,-332.0,0.00034564,30]
[422074542,1778551844000,-152.0,0.00035721,30]
[422074474,1778551844000,-186.05010113,0.00033,120]
[422074541,1778551844000,-152.0,0.00035689,30]
[422074571,1778551844000,-300.0,0.0003711,2]
[422074569,1778551844000,-300.0,0.0003711,2]
[422074573,1778551844000,-300.0,0.0003711,2]
[422074578,1778551844000,-490.8893522,0.0003711,2]
[422074576,1778551844000,-492.49408754,0.0003711,2]
[422074575,1778551844000,-300.0,0.0003711,2]
[422074577,1778551844000,-300.0,0.0003711,2]
[422074574,1778551844000,-300.0,0.0003711,2]
[422074579,1778551844000,-300.0,0.0003711,2]
[422074581,1778551844000,-300.0,0.0003711,2]
[422074582,1778551844000,-300.0,0.0003711,2]
[422074580,1778551844000,-300.0,0.0003711,2]
[422074584,1778551844000,-300.0,0.0003711,2]
[422074583,1778551844000,-604.21547136,0.0003711,2]
[422074585,1778551844000,-300.0,0.0003711,2]
[422074587,1778551844000,-527.54022817,0.0003711,2]
[422074586,1778551844000,-300.0,0.0003711,2]
[422074591,1778551844000,-725.78568352,0.0003711,2]
[422074590,1778551844000,-893.04482543,0.0003711,2]
[422074588,1778551844000,-300.0,0.0003711,2]
[422074589,1778551844000,-1066.50381929,0.0003711,2]
[422074592,1778551844000,-300.0,0.0003711,2]
[422074595,1778551844000,-300.0,0.0003711,2]
[422074593,1778551844000,-301.67321972,0.0003711,2]
[422074537,1778551844000,-278.0,0.00035635,30]
[422074572,1778551844000,-300.0,0.0003711,2]
[422074570,1778551844000,-300.0,0.0003711,2]
[422074594,1778551844000,-300.0,0.0003711,2]
[422074562,1778551844000,-300.0,0.0003711,2]
[422074568,1778551844000,-300.0,0.0003711,2]
[422074539,1778551844000,-152.0,0.00035689,30]
[422074543,1778551844000,-152.0,0.00035721,30]
[422074547,1778551844000,-448.648598,0.00035732,7]
[422074545,1778551844000,-448.648598,0.00035732,7]
[422074544,1778551844000,-448.648598,0.00035732,7]
[422074546,1778551844000,-448.648598,0.00035732,7]
[422074548,1778551844000,-152.0,0.00035753,30]
[422074552,1778551844000,-791.7,0.000362,7]
[422074550,1778551844000,-191.91529612,0.00035993,2]
[422074553,1778551844000,-183.63,0.00036362,60]
[422074549,1778551844000,-150.0,0.00035981,2]
[422074551,1778551844000,-736.0,0.00036153,30]
[422074540,1778551844000,-152.0,0.00035689,30]
[422074555,1778551844000,-151.0,0.00036564,30]
[422074567,1778551844000,-300.0,0.0003711,2]
[422074554,1778551844000,-332.0,0.00036564,30]
[422074566,1778551844000,-300.0,0.0003711,2]
[422074561,1778551844000,-500.51673943,0.0003678,120]
[422074564,1778551844000,-300.0,0.0003711,2]
[422074565,1778551844000,-300.0,0.0003711,2]
[422074556,1778551844000,-1033.0,0.00036568,30]
[422074560,1778551844000,-150.11,0.0003669,30]
[422074558,1778551844000,-152.0,0.00036617,30]
[422074557,1778551844000,-152.0,0.00036617,30]
[422074559,1778551844000,-552.0,0.00036617,30]
[422074563,1778551844000,-1094.29459015,0.0003711,2]
[422074636,1778551845000,-300.0,0.0003711,2]
[422074635,1778551845000,-300.0,0.0003711,2]
[422074632,1778551845000,-483.88780455,0.0003711,2]
[422074630,1778551845000,-300.0,0.0003711,2]
[422074629,1778551845000,-300.0,0.0003711,2]
[422074628,1778551845000,-300.0,0.0003711,2]
[422074627,1778551845000,-300.0,0.0003711,2]
[422074626,1778551845000,-300.0,0.0003711,2]
[422074625,1778551845000,-451.72868137,0.0003711,2]
[422074631,1778551845000,-300.0,0.0003711,2]
[422074633,1778551845000,-309.70196001,0.0003711,2]
[422074637,1778551845000,-300.0,0.0003711,2]
[422074639,1778551845000,-300.0,0.0003711,2]
[422074638,1778551845000,-300.0,0.0003711,2]
[422074644,1778551845000,-300.0,0.0003711,2]
[422074640,1778551845000,-1094.29459015,0.0003711,2]
[422074642,1778551845000,-300.0,0.0003711,2]
[422074643,1778551845000,-300.0,0.0003711,2]
[422074641,1778551845000,-300.0,0.0003711,2]
[422074645,1778551845000,-300.0,0.0003711,2]
[422074647,1778551845000,-300.0,0.0003711,2]
[422074623,1778551845000,-576.75052358,0.0003711,2]
[422074649,1778551845000,-300.0,0.0003711,2]
[422074634,1778551845000,-300.0,0.0003711,2]
[422074624,1778551845000,-300.0,0.0003711,2]
[422074608,1778551845000,-526.68525168,0.0003711,2]
[422074619,1778551845000,-310.77293504,0.0003711,2]
[422074648,1778551845000,-300.0,0.0003711,2]
[422074596,1778551845000,-300.34921583,0.0003711,2]
[422074597,1778551845000,-300.0,0.0003711,2]
[422074599,1778551845000,-300.0,0.0003711,2]
[422074600,1778551845000,-300.0,0.0003711,2]
[422074603,1778551845000,-300.0,0.0003711,2]
[422074601,1778551845000,-300.0,0.0003711,2]
[422074604,1778551845000,-1911.66155628,0.0003711,2]
[422074598,1778551845000,-300.0,0.0003711,2]
[422074607,1778551845000,-300.0,0.0003711,2]
[422074605,1778551845000,-300.0,0.0003711,2]
[422074622,1778551845000,-300.0,0.0003711,2]
[422074610,1778551845000,-1146.71946024,0.0003711,2]
[422074606,1778551845000,-343.84381003,0.0003711,2]
[422074611,1778551845000,-309.46605895,0.0003711,2]
[422074616,1778551845000,-300.0,0.0003711,2]
[422074614,1778551845000,-300.0,0.0003711,2]
[422074612,1778551845000,-300.0,0.0003711,2]
[422074615,1778551845000,-1809.24690158,0.0003711,2]
[422074613,1778551845000,-864.10865205,0.0003711,2]
[422074618,1778551845000,-300.0,0.0003711,2]
[422074617,1778551845000,-300.0,0.0003711,2]
[422074620,1778551845000,-300.0,0.0003711,2]
[422074621,1778551845000,-463.6616139,0.0003711,2]
[422074609,1778551845000,-300.0,0.0003711,2]
[422074646,1778551845000,-300.0,0.0003711,2]
[422074602,1778551845000,-853.56388588,0.0003711,2]
[422074651,1778551845000,-300.0,0.0003711,2]
[422074681,1778551845000,-372.7203181,0.0003711,2]
[422074682,1778551845000,-300.0,0.0003711,2]
[422074684,1778551845000,-300.0,0.0003711,2]
[422074680,1778551845000,-300.0,0.0003711,2]
[422074683,1778551845000,-853.56388588,0.0003711,2]
[422074685,1778551845000,-1911.66155628,0.0003711,2]
[422074687,1778551845000,-343.84381003,0.0003711,2]
[422074686,1778551845000,-300.0,0.0003711,2]
[422074690,1778551845000,-300.0,0.0003711,2]
[422074693,1778551845000,-300.0,0.0003711,2]
[422074692,1778551845000,-309.46605895,0.0003711,2]
[422074677,1778551845000,-300.0,0.0003711,2]
[422074688,1778551845000,-526.68525168,0.0003711,2]
[422074689,1778551845000,-300.0,0.0003711,2]
[422074694,1778551845000,-864.10865205,0.0003711,2]
[422074696,1778551845000,-1809.24690158,0.0003711,2]
[422074695,1778551845000,-300.0,0.0003711,2]
[422074697,1778551845000,-300.0,0.0003711,2]
[422074700,1778551845000,-300.0,0.0003711,2]
[422074702,1778551845000,-300.0,0.0003711,2]
[422074703,1778551845000,-463.6616139,0.0003711,2]
[422074701,1778551845000,-310.77293504,0.0003711,2]
[422074704,1778551845000,-300.0,0.0003711,2]
[422074650,1778551845000,-300.0,0.0003711,2]
[422074691,1778551845000,-1146.71946024,0.0003711,2]
[422074678,1778551845000,-300.0,0.0003711,2]
[422074699,1778551845000,-300.0,0.0003711,2]
[422074679,1778551845000,-300.0,0.0003711,2]
[422074676,1778551845000,-300.45062341,0.0003711,2]
[422074652,1778551845000,-300.0,0.0003711,2]
[422074657,1778551845000,-364.15096112,0.0003711,2]
[422074653,1778551845000,-300.0,0.0003711,2]
[422074654,1778551845000,-300.0,0.0003711,2]
[422074656,1778551845000,-300.3087901,0.0003711,2]
[422074658,1778551845000,-300.0,0.0003711,2]
[422074661,1778551845000,-300.0,0.0003711,2]
[422074660,1778551845000,-300.0,0.0003711,2]
[422074659,1778551845000,-300.0,0.0003711,2]
[422074662,1778551845000,-604.21547136,0.0003711,2]
[422074663,1778551845000,-300.0,0.0003711,2]
[422074655,1778551845000,-492.49408754,0.0003711,2]
[422074667,1778551845000,-300.0,0.0003711,2]
[422074664,1778551845000,-300.0,0.0003711,2]
[422074674,1778551845000,-300.0,0.0003711,2]
[422074673,1778551845000,-301.67321972,0.0003711,2]
[422074671,1778551845000,-725.78568352,0.0003711,2]
[422074675,1778551845000,-300.0,0.0003711,2]
[422074670,1778551845000,-300.0,0.0003711,2]
[422074668,1778551845000,-1066.50381929,0.0003711,2]
[422074665,1778551845000,-300.0,0.0003711,2]
[422074666,1778551845000,-527.54022817,0.0003711,2]
[422074669,1778551845000,-893.04482543,0.0003711,2]
[422074672,1778551845000,-300.0,0.0003711,2]
[422074728,1778551846000,-229.754449,0.000377,7]
[422074736,1778551846000,-474.041222,0.000377,7]
[422074730,1778551846000,-1136.281255,0.000377,7]
[422074731,1778551846000,-1136.281255,0.000377,7]
[422074732,1778551846000,-1136.281255,0.000377,7]
[422074733,1778551846000,-474.041222,0.000377,7]
[422074734,1778551846000,-474.041222,0.000377,7]
[422074735,1778551846000,-474.041222,0.000377,7]
[422074737,1778551846000,-150.0,0.0003778,2]
[422074744,1778551846000,-238496.55667891,0.00038,2]
[422074739,1778551846000,-205.5872318,0.0003788,2]
[422074738,1778551846000,-150.11,0.0003784,60]
[422074741,1778551846000,-1700.0,0.000379,13]
[422074742,1778551846000,-471.48952384,0.00038,2]
[422074743,1778551846000,-459.0448683,0.00038,2]
[422074748,1778551846000,-347.517931,0.00038,7]
[422074747,1778551846000,-151.0,0.00038,7]
[422074746,1778551846000,-622.13755144,0.00038,2]
[422074726,1778551846000,-151.0,0.000377,7]
[422074740,1778551846000,-150.63637423,0.00037889,7]
[422074729,1778551846000,-1136.281255,0.000377,7]
[422074714,1778551846000,-483.88780455,0.0003711,2]
[422074725,1778551846000,-151.0,0.000377,7]
[422074749,1778551846000,-347.517931,0.00038,7]
[422074706,1778551846000,-300.0,0.0003711,2]
[422074705,1778551846000,-576.93890108,0.0003711,2]
[422074708,1778551846000,-300.0,0.0003711,2]
[422074707,1778551846000,-451.72868137,0.0003711,2]
[422074709,1778551846000,-300.0,0.0003711,2]
[422074711,1778551846000,-300.0,0.0003711,2]
[422074712,1778551846000,-300.0,0.0003711,2]
[422074710,1778551846000,-300.0,0.0003711,2]
[422074727,1778551846000,-151.0,0.000377,7]
[422074713,1778551846000,-300.0,0.0003711,2]
[422074717,1778551846000,-250.0,0.00037111,7]
[422074718,1778551846000,-167.75,0.00037174,13]
[422074720,1778551846000,-503.0,0.00037371,15]
[422074719,1778551846000,-166.43,0.000372,30]
[422074716,1778551846000,-151.0,0.0003711,7]
[422074721,1778551846000,-15278.27,0.00037427,90]
[422074722,1778551846000,-371.52038803,0.00037528,120]
[422074724,1778551846000,-3176.4,0.000377,14]
[422074723,1778551846000,-721.123,0.00037615,49]
[422074715,1778551846000,-309.70196001,0.0003711,2]
[422074750,1778551846000,-347.517931,0.00038,7]
[422074745,1778551846000,-155.69007794,0.00038,2]
[422074753,1778551846000,-151.0,0.00038,7]
[422074778,1778551846000,-505.95760392,0.00038356,2]
[422074780,1778551846000,-150.0,0.00038356,10]
[422074779,1778551846000,-151.0,0.00038356,7]
[422074782,1778551846000,-1000.0,0.00038356,7]
[422074783,1778551846000,-1000.0,0.00038356,7]
[422074781,1778551846000,-231.88832598,0.00038356,10]
[422074784,1778551846000,-931.8569684,0.00038356,7]
[422074785,1778551846000,-308.95302127,0.00038356,2]
[422074787,1778551846000,-151.0,0.00038356,30]
[422074777,1778551846000,-299.42619551,0.00038356,2]
[422074786,1778551846000,-151.0,0.00038356,30]
[422074791,1778551846000,-250.0,0.00038359,5]
[422074790,1778551846000,-729.54,0.00038356,30]
[422074792,1778551846000,-350.0,0.00038362,5]
[422074794,1778551846000,-1065.11,0.00038364,2]
[422074793,1778551846000,-1065.11,0.00038364,2]
[422074795,1778551846000,-151.0,0.00038364,30]
[422074796,1778551846000,-450.0,0.00038364,5]
[422074797,1778551846000,-1065.11,0.00038366,2]
[422074751,1778551846000,-347.517931,0.00038,7]
[422074789,1778551846000,-150.0,0.00038356,5]
[422074775,1778551846000,-500.0,0.00038356,2]
[422074788,1778551846000,-1562.0,0.00038356,30]
[422074773,1778551846000,-500.0,0.00038356,2]
[422074752,1778551846000,-151.0,0.00038,7]
[422074776,1778551846000,-500.0,0.00038356,2]
[422074754,1778551846000,-151.0,0.00038,7]
[422074755,1778551846000,-960.99,0.00038029,90]
[422074756,1778551846000,-275.32714793,0.000381,33]
[422074759,1778551846000,-736.0,0.00038125,30]
[422074758,1778551846000,-562.19,0.000381,90]
[422074760,1778551846000,-595.38479004,0.00038244,31]
[422074761,1778551846000,-360.57,0.00038276,60]
[422074762,1778551846000,-923.92,0.00038276,60]
[422074757,1778551846000,-213.9,0.000381,90]
[422074763,1778551846000,-1703.5,0.00038329,120]
[422074766,1778551846000,-1383.0,0.00038329,120]
[422074765,1778551846000,-158.82843331,0.00038329,120]
[422074767,1778551846000,-1383.0,0.00038329,120]
[422074768,1778551846000,-155.409,0.00038351,2]
[422074769,1778551846000,-156.9473,0.00038351,2]
[422074770,1778551846000,-901.41552933,0.00038356,7]
[422074772,1778551846000,-500.0,0.00038356,2]
[422074764,1778551846000,-1703.5,0.00038329,120]
[422074771,1778551846000,-500.0,0.00038356,2]
[422074774,1778551846000,-500.0,0.00038356,2]
[422074845,1778551847000,-474.041222,0.00038591,7]
[422074844,1778551847000,-347.517931,0.00038591,30]
[422074842,1778551847000,-347.517931,0.00038591,30]
[422074840,1778551847000,-151.0,0.00038591,30]
[422074843,1778551847000,-347.517931,0.00038591,30]
[422074839,1778551847000,-1136.281255,0.00038591,28]
[422074838,1778551847000,-1136.281255,0.00038591,28]
[422074834,1778551847000,-151.0,0.00038591,30]
[422074836,1778551847000,-1136.281255,0.00038591,28]
[422074848,1778551847000,-474.041222,0.00038591,7]
[422074832,1778551847000,-448.648598,0.00038591,30]
[422074841,1778551847000,-347.517931,0.00038591,30]
[422074846,1778551847000,-474.041222,0.00038591,7]
[422074859,1778551847000,-25000.0,0.00038885,15]
[422074847,1778551847000,-474.041222,0.00038591,7]
[422074850,1778551847000,-171.81453,0.00038591,30]
[422074851,1778551847000,-151.0,0.00038591,30]
[422074852,1778551847000,-151.0,0.00038591,30]
[422074853,1778551847000,-1562.0,0.0003863,30]
[422074854,1778551847000,-1000.0,0.00038673,120]
[422074855,1778551847000,-5406.55341866,0.00038834,2]
[422074860,1778551847000,-25000.0,0.00038894,15]
[422074858,1778551847000,-566.82,0.00038875,7]
[422074861,1778551847000,-19234.67559057,0.00038894,15]
[422074856,1778551847000,-194.82682534,0.0003885,30]
[422074835,1778551847000,-151.0,0.00038591,30]
[422074849,1778551847000,-151.0,0.00038591,30]
[422074837,1778551847000,-1136.281255,0.00038591,28]
[422074804,1778551847000,-650.0,0.0003837,5]
[422074830,1778551847000,-448.648598,0.00038591,30]
[422074863,1778551847000,-1798.80895522,0.00038903,30]
[422074798,1778551847000,-1065.11,0.00038366,2]
[422074799,1778551847000,-1065.11,0.00038366,2]
[422074800,1778551847000,-550.0,0.00038367,5]
[422074802,1778551847000,-1065.11,0.00038368,2]
[422074801,1778551847000,-1065.1,0.00038368,2]
[422074805,1778551847000,-701.35194092,0.00038373,5]
[422074803,1778551847000,-1065.11,0.00038368,2]
[422074806,1778551847000,-39326.1736,0.00038395,30]
[422074807,1778551847000,-49633.30527496,0.000385,2]
[422074816,1778551847000,-151.0,0.00038591,30]
[422074827,1778551847000,-151.0,0.00038591,30]
[422074833,1778551847000,-151.0,0.00038591,30]
[422074809,1778551847000,-200.0,0.00038534,6]
[422074824,1778551847000,-33723.8808211,0.00038591,2]
[422074810,1778551847000,-200.0,0.00038534,6]
[422074826,1778551847000,-151.0,0.00038591,30]
[422074814,1778551847000,-20216.744551,0.00038591,2]
[422074811,1778551847000,-155.20974893,0.00038588,14]
[422074812,1778551847000,-155467.6981337,0.00038591,2]
[422074822,1778551847000,-1047.5029803,0.00038591,2]
[422074820,1778551847000,-246.469525,0.00038591,30]
[422074818,1778551847000,-154.040383,0.00038591,30]
[422074829,1778551847000,-448.648598,0.00038591,30]
[422074831,1778551847000,-448.648598,0.00038591,30]
[422074828,1778551847000,-154.114476,0.00038591,30]
[422074813,1778551847000,-696757.8835164,0.00038591,2]
[422074862,1778551847000,-2000.0,0.000389,7]
[422074887,1778551847000,-661.29,0.0003907,7]
[422074865,1778551847000,-5800.0,0.00038907,14]
[422074899,1778551847000,-15278.27,0.00039331,120]
[422074897,1778551847000,-155.409,0.0003931,2]
[422074898,1778551847000,-156.9473,0.0003931,2]
[422074894,1778551847000,-1483.54939322,0.00039203,120]
[422074895,1778551847000,-186.0,0.00039205,120]
[422074901,1778551847000,-500.0,0.00039356,60]
[422074900,1778551847000,-500.0,0.00039356,60]
[422074902,1778551847000,-1911.0,0.0003937,120]
[422074904,1778551847000,-1562.0,0.00039452,30]
[422074903,1778551847000,-3989.38,0.00039404,120]
[422074906,1778551847000,-166.43,0.000395,30]
[422074910,1778551847000,-937.0936,0.0003968,30]
[422074896,1778551847000,-503.0,0.00039225,17]
[422074909,1778551847000,-150.0,0.00039669,2]
[422074908,1778551847000,-183.579,0.0003963,120]
[422074912,1778551847000,-1253.0001,0.00039716,120]
[422074913,1778551847000,-1562.0,0.00039726,30]
[422074914,1778551847000,-3989.38,0.00039729,120]
[422074911,1778551847000,-166.0,0.0003968,11]
[422074916,1778551847000,-1000.0,0.00039773,120]
[422074915,1778551847000,-717.3645631,0.0003977,2]
[422074918,1778551847000,-516.22911801,0.00039814,2]
[422074917,1778551847000,-50000.0,0.000398,120]
[422074920,1778551847000,-516.22911801,0.00039897,2]
[422074919,1778551847000,-178.99855138,0.00039843,120]
[422074857,1778551847000,-661.29,0.00038875,7]
[422074907,1778551847000,-152.0,0.00039579,30]
[422074892,1778551847000,-1562.0,0.00039178,30]
[422074905,1778551847000,-500.0,0.00039452,5]
[422074891,1778551847000,-381.0,0.00039162,120]
[422074893,1778551847000,-267.0,0.00039182,120]
[422074866,1778551847000,-5800.0,0.00038915,14]
[422074867,1778551847000,-5800.0,0.00038924,14]
[422074868,1778551847000,-5800.0,0.00038932,14]
[422074869,1778551847000,-5800.0,0.00038941,14]
[422074871,1778551847000,-602.743928,0.0003895,2]
[422074870,1778551847000,-5800.0,0.00038949,14]
[422074872,1778551847000,-38542.17374256,0.0003895,2]
[422074873,1778551847000,-5800.0,0.00038957,14]
[422074874,1778551847000,-5800.0,0.00038966,14]
[422074875,1778551847000,-5800.0,0.00038975,14]
[422074880,1778551847000,-3176.4,0.00039,14]
[422074876,1778551847000,-5800.0,0.00038983,14]
[422074864,1778551847000,-1562.0,0.00038904,30]
[422074877,1778551847000,-150.11,0.0003899,120]
[422074878,1778551847000,-5800.0,0.00038992,14]
[422074890,1778551847000,-350.0,0.00039124,7]
[422074921,1778551847000,-151.46,0.000399,30]
[422074884,1778551847000,-3110.99889039,0.00039,14]
[422074883,1778551847000,-1007.29138247,0.00039,2]
[422074886,1778551847000,-1121.2875692,0.00039,7]
[422074889,1778551847000,-163.0,0.00039114,120]
[422074885,1778551847000,-2021.12940849,0.00039,120]
[422074881,1778551847000,-791.7,0.00039,30]
[422074882,1778551847000,-5800.0,0.00039,14]
[422074879,1778551847000,-214.82098671,0.00039,30]
[422074888,1778551847000,-3989.35,0.00039079,120]
[422074962,1778551848000,-900.0,0.00039973,30]
[422074963,1778551848000,-900.0,0.00039973,30]